bitfinex-derivatives/quotes_ETHF0:USTF0_20250903
["timestamp","ask_amount","ask_price","bid_price","bid_amount"]
[1756871698210,0.8379,4338.0,4337.9,1.83470813]
[1756871698816,0.8379,4338.0,4337.9,1.46730813]
[1756871699011,0.8379,4338.0,4337.8,0.233]
[1756871699414,0.8379,4338.0,4337.9,0.1344]
[1756871699608,0.8379,4338.0,4337.9,1.60170813]
[1756871699806,0.445,4338.0,4337.9,4.89350813]
[1756871700412,0.3175,4338.0,4337.9,4.89350813]
[1756871701520,0.3244,4338.5,4338.4,0.1344]
[1756871701817,0.3244,4338.5,4338.4,0.2688]
[1756871701818,1.12329411,4338.5,4338.4,0.2688]
[1756871702224,1.44079411,4338.5,4338.4,0.2688]
[1756871702411,0.8362,4338.5,4338.4,0.2688]
[1756871704017,0.8362,4338.5,4338.3,1.33290813]
[1756871704018,0.5187,4338.5,4338.3,1.33290813]
[1756871704318,0.7104,4338.1,4338.0,1.33290813]
[1756871704519,0.7104,4338.1,4338.0,1.56590813]
[1756871705113,0.7104,4338.1,4338.0,1.70030813]
[1756871706922,0.7104,4338.1,4338.0,1.83470813]
[1756871707421,0.7104,4338.1,4338.0,1.33290813]
[1756871708314,0.7104,4338.1,4337.9,3.4408]
[1756871708315,0.8379,4338.0,4337.9,3.4408]
[1756871709419,0.445,4337.5,4337.3,1.33290813]
[1756871709622,0.445,4337.5,4337.4,44.2408]
[1756871712124,0.8536,4337.5,4337.4,3.2078]
[1756871712329,0.7092,4337.4,4337.3,0.233]
[1756871712817,0.7092,4336.9,4336.8,4.67510813]
[1756871713017,0.7092,4336.9,4336.8,4.90810813]
[1756871713325,0.3006,4336.9,4336.8,45.92650813]
[1756871714122,0.3006,4336.9,4336.8,45.69350813]
[1756871714519,0.3006,4336.9,4336.8,45.92650813]
[1756871714716,0.3006,4336.9,4336.8,45.84250813]
[1756871715224,0.3006,4336.9,4336.8,45.60950813]
[1756871715424,0.3006,4336.9,4336.8,45.84250813]
[1756871715824,0.3006,4336.9,4336.8,45.60950813]
[1756871716023,0.3006,4336.9,4336.8,45.84250813]
[1756871716224,0.3006,4336.9,4336.8,45.92650813]
[1756871716527,0.4262,4337.0,4336.9,0.3528]
[1756871718717,0.6345,4337.0,4336.9,0.2688]
[1756871718922,0.8348,4337.0,4336.9,0.5018]
[1756871721630,0.8348,4337.0,4336.9,0.2688]
[1756871721831,0.8348,4337.0,4336.9,0.5018]
[1756871722632,0.3006,4336.9,4336.8,4.54070813]
[1756871722832,0.7092,4336.9,4336.8,4.77370813]
[1756871723033,0.7092,4336.9,4336.8,5.04250813]
[1756871723227,0.7092,4336.9,4336.8,45.84250813]
[1756871723430,0.7092,4336.9,4336.8,5.04250813]
[1756871724329,0.7092,4336.9,4336.8,3.7096]
[1756871724633,0.7092,4336.9,4336.8,5.04250813]
[1756871725239,0.7092,4336.9,4336.8,3.4408]
[1756871726634,0.2083,4336.1,4336.0,1.33290813]
[1756871726935,0.2083,4336.1,4336.0,45.61050813]
[1756871727133,0.7092,4336.1,4336.0,3.3427]
[1756871727333,0.7092,4336.1,4336.0,3.5757]
[1756871727534,0.7092,4336.1,4336.0,3.7106]
[1756871728432,0.7092,4336.1,4336.0,3.5757]
[1756871730031,0.7092,4336.1,4336.0,3.7106]
[1756871730839,0.7092,4336.1,4336.0,5.04350813]
[1756871733636,0.7092,4336.1,4336.0,3.2078]
[1756871733847,0.7092,4336.1,4335.4,40.8]
[1756871733848,0.7092,4335.6,4335.5,3.3427]
[1756871734440,0.7092,4335.6,4335.5,3.5757]
[1756871735138,0.7092,4335.6,4335.5,3.3427]
[1756871735439,0.7092,4335.6,4335.5,3.5757]
[1756871736336,0.7092,4335.6,4335.5,3.3427]
[1756871736734,0.5089,4335.6,4335.5,3.4776]
[1756871736937,0.3006,4335.6,4335.5,3.5619]
[1756871737638,0.5089,4335.6,4335.5,3.4776]
[1756871739440,0.5089,4335.6,4335.5,0.2698]
[1756871745147,0.7144,4335.6,4335.5,0.2698]
[1756871746855,0.7144,4335.6,4335.5,0.1349]
[1756871747146,0.1256,4336.0,4335.5,0.2699]
[1756871747349,0.5287,4335.9,4335.8,0.27]
[1756871747751,0.7342,4335.9,4335.8,0.27]
[1756871747952,0.7342,4335.9,4335.8,0.135]
[1756871748754,0.3172,4335.8,4335.6,0.233]
[1756871748950,0.417,4335.7,4335.6,0.368]
[1756871749248,0.7342,4335.7,4335.6,0.368]
[1756871751345,0.3172,4335.9,4335.8,0.27]
[1756871751551,0.3172,4335.9,4335.8,1.67957918]
[1756871752854,0.5287,4335.9,4335.8,1.59517918]
[1756871753057,0.3172,4335.9,4335.8,1.67957918]
[1756871753656,0.5287,4335.9,4335.8,1.67957918]
[1756871753957,0.5287,4335.9,4335.8,1.59517918]
[1756871756452,3.5664,4337.0,4335.8,1.59517918]
[1756871756453,3.2078,4337.7,4336.9,0.0844]
[1756871756657,0.3314,4337.5,4337.4,1.36217918]
[1756871756955,0.5369,4337.5,4337.4,1.36217918]
[1756871757158,0.8541,4337.5,4337.4,1.36217918]
[1756871758255,0.6486,4337.5,4337.4,1.36217918]
[1756871760347,0.1199,4338.0,4337.5,0.0844]
[1756871760659,0.3314,4338.0,4337.9,1.36217918]
[1756871760861,0.3314,4338.0,4337.9,0.27]
[1756871761060,0.6486,4338.0,4337.9,1.36217918]
[1756871761556,0.5369,4338.0,4337.3,3.2078]
[1756871761763,0.417,4337.7,4337.6,1.22717918]
[1756871761955,0.7342,4337.7,4337.6,1.22717918]
[1756871762156,0.7342,4337.7,4337.6,1.36217918]
[1756871765252,0.5287,4337.7,4337.6,1.36217918]
[1756871765457,0.3172,4337.7,4337.6,1.44657918]
[1756871765660,0.4371,4338.0,4337.6,1.59271918]
[1756871765865,0.3172,4338.0,4337.9,1.44657918]
[1756871766069,0.3172,4338.4,4337.9,1.59517918]
[1756871766365,0.4371,4338.5,4338.4,0.27]
[1756871766661,0.4371,4338.5,4338.4,0.3544]
[1756871768365,0.6486,4338.5,4338.4,0.27]
[1756871769466,0.8541,4338.5,4338.4,0.27]
[1756871769864,0.8541,4338.5,4338.4,0.503]
[1756871770066,0.8541,4338.5,4338.4,0.368]
[1756871770265,0.8541,4338.5,4338.3,4.29997918]
[1756871770466,0.7342,4338.4,4338.3,3.2078]
[1756871770867,0.7342,4338.4,4338.3,4.29997918]
[1756871771071,0.7342,4338.4,4338.3,4.56837918]
[1756871771271,0.7342,4338.4,4338.3,4.80137918]
[1756871772580,0.5287,4338.4,4338.3,45.60137918]
[1756871775370,0.5287,4338.4,4338.3,4.80137918]
[1756871775876,0.7252,4338.4,4338.3,4.80137918]
[1756871777367,0.5287,4338.4,4338.3,4.80137918]
[1756871777571,0.5287,4338.4,4338.3,4.88627918]
[1756871777773,0.5287,4338.4,4338.3,3.7941]
[1756871778077,0.5287,4338.4,4338.3,4.80137918]
[1756871781884,0.7252,4338.4,4338.3,4.80137918]
[1756871783979,0.7252,4338.4,4338.2,40.8]
[1756871783980,0.4016,4337.9,4337.8,3.2078]
[1756871784181,0.7209,4337.9,4337.8,3.2078]
[1756871784381,0.7209,4337.9,4337.8,3.4408]
[1756871785079,0.7209,4337.9,4337.8,3.7124]
[1756871785277,0.3193,4337.9,4337.8,3.7124]
[1756871785486,0.3193,4337.9,4337.8,3.7973]
[1756871786484,0.1199,4338.5,4337.8,3.7124]
[1756871786485,0.3193,4338.4,4337.8,3.7124]
[1756871786777,0.6443,4338.5,4338.4,0.2716]
[1756871786981,0.6443,4338.5,4338.4,0.5046]
[1756871787385,0.8408,4338.5,4338.4,0.3688]
[1756871789790,0.8408,4338.5,4338.4,0.5046]
[1756871790983,0.5215,4338.5,4338.3,1.09217918]
[1756871791184,0.7209,4338.4,4338.3,1.36377918]
[1756871792790,0.7209,4338.4,4338.3,1.22797918]
[1756871801000,0.7209,4338.4,4338.1,0.233]
[1756871802400,0.7209,4338.4,4338.3,0.1358]
[1756871803408,0.7209,4338.4,4338.3,1.36237918]
[1756871808398,1.32606552,4338.4,4338.3,1.36237918]
[1756871812704,0.92446552,4338.4,4338.3,1.44637918]
[1756871813200,1.11986552,4338.4,4338.3,1.36237918]
[1756871813404,1.31416552,4338.4,4338.3,1.36237918]
[1756871813603,1.31416552,4338.4,4338.3,0.2702]
[1756871814903,0.91026552,4338.4,4338.3,0.3542]
[1756871815499,1.10566552,4338.4,4338.3,0.2702]
[1756871815700,1.29996552,4338.4,4338.3,0.2702]
[1756871817502,0.99486552,4338.4,4338.1,1.3328021]
[1756871817699,0.3051,4338.3,4338.2,0.3674]
[1756871817906,0.5005,4338.3,4338.2,0.5018]
[1756871820410,0.6948,4338.3,4338.2,0.5018]
[1756871821001,0.6948,4338.3,4338.2,0.2688]
[1756871821194,0.3051,4338.2,4338.1,1.5658021]
[1756871821394,0.6948,4338.2,4338.1,1.5658021]
[1756871821604,0.6948,4338.2,4338.1,1.7002021]
[1756871822005,0.6948,4338.2,4337.8,3.2078]
[1756871822202,0.6948,4337.9,4337.8,3.2078]
[1756871822402,0.6948,4337.4,4337.3,3.2078]
[1756871822602,0.6948,4337.4,4337.3,3.4408]
[1756871822803,0.3051,4337.4,4337.3,3.7936]
[1756871824205,0.3051,4337.9,4337.3,3.94016]
[1756871824413,0.3051,4337.9,4337.8,1.6856021]
[1756871824613,0.3051,4337.9,4337.8,1.9186021]
[1756871824813,0.3051,4337.9,4337.8,5.1264021]
[1756871825206,0.5005,4337.9,4337.8,5.0424021]
[1756871825406,0.3051,4337.9,4337.8,5.1264021]
[1756871827812,0.3051,4337.9,4337.8,3.7936]
[1756871828008,0.5005,4337.9,4337.8,3.7096]
[1756871828215,0.3051,4337.9,4337.8,3.7935]
[1756871833716,0.5005,4337.9,4337.8,3.7935]
[1756871833918,0.5005,4337.9,4337.8,3.7096]
[1756871834920,0.5005,4337.9,4337.8,3.4766]
[1756871835120,0.5005,4337.9,4337.8,3.7096]
[1756871835318,0.5005,4337.9,4337.8,3.7937]
[1756871835516,0.5005,4337.9,4337.8,3.4766]
[1756871835714,0.7046,4337.9,4337.8,3.4766]
[1756871835914,0.7046,4337.9,4337.8,3.7096]
[1756871836617,0.7046,4337.9,4337.8,3.3422]
[1756871836819,0.7046,4337.9,4337.8,3.5752]
[1756871837020,0.7046,4337.9,4337.8,3.7098]
[1756871837218,0.5005,4337.9,4337.8,3.7098]
[1756871837422,0.5005,4337.9,4337.8,3.7939]
[1756871837720,0.5005,4337.9,4337.8,3.7098]
[1756871838019,0.3051,4337.9,4337.8,3.7939]
[1756871840419,0.3186,4338.4,4337.8,3.7939]
[1756871840621,0.2005,4338.3,4338.2,1.6020021]
[1756871840820,0.5191,4338.3,4338.2,1.8350021]
[1756871841824,0.7232,4338.3,4338.2,1.8350021]
[1756871842616,0.7232,4337.9,4337.8,4.5406021]
[1756871842819,0.7232,4337.9,4337.8,4.7736021]
[1756871843015,0.7232,4337.9,4337.8,4.9082021]
[1756871845423,0.7232,4337.9,4337.8,4.6752021]
[1756871845625,0.7232,4337.9,4337.8,4.9082021]
[1756871848525,0.7232,4337.9,4337.8,0.3676]
[1756871850426,0.7232,4337.9,4337.8,1.7004021]
[1756871851020,0.7232,4337.9,4337.8,1.4674021]
[1756871851224,0.7232,4337.9,4337.8,1.7004021]
[1756871857421,0.7232,4337.9,4337.8,0.3676]
[1756871857627,0.7232,4337.9,4337.8,0.233]
[1756871857828,0.4046,4337.9,4337.4,1.3328021]
[1756871858026,0.4046,4337.9,4337.5,0.233]
[1756871858529,0.4046,4337.9,4337.4,1.3328021]
[1756871858727,0.4046,4337.9,4337.5,0.233]
[1756871860330,0.4046,4337.9,4337.6,0.233]
[1756871862927,0.4046,4337.9,4337.3,3.2078]
[1756871863231,0.4046,4337.9,4337.4,0.233]
[1756871863426,1.94033099,4337.8,4337.3,3.2078]
[1756871863632,1.3328021,4337.5,4336.8,3.2078]
[1756871863830,0.60752889,4337.4,4336.4,0.233]
[1756871864331,0.23058,4337.3,4336.4,0.233]
[1756871864832,4.7736021,4337.5,4336.4,0.233]
[1756871865034,0.83788138,4337.4,4336.4,0.233]
[1756871865333,0.83788138,4337.3,4336.4,0.233]
[1756871865532,0.23058,4337.4,4336.4,0.233]
[1756871865733,0.60705939,4337.3,4336.4,0.233]
[1756871866030,4.7736021,4337.5,4336.4,0.233]
[1756871866233,0.83763939,4337.4,4336.4,0.233]
[1756871866434,0.23058,4337.4,4336.4,0.233]
[1756871866629,0.23058,4337.3,4336.4,0.233]
[1756871866932,0.23058,4337.4,4336.4,0.233]
[1756871867433,4.7736021,4337.5,4336.4,0.233]
[1756871867733,0.60673217,4337.4,4336.4,0.233]
[1756871868034,3.4408,4337.5,4336.6,1.3328021]
[1756871868235,0.60673127,4337.4,4336.6,1.3328021]
[1756871868427,3.4408,4337.5,4336.6,1.3328021]
[1756871868622,0.60661675,4337.4,4336.6,1.3328021]
[1756871868831,3.3301,4338.0,4337.2,1.3328021]
[1756871869035,0.60657986,4337.9,4337.2,1.3328021]
[1756871869232,3.3301,4338.0,4337.2,1.3328021]
[1756871869233,0.60657986,4337.8,4337.2,1.3328021]
[1756871869437,0.60657986,4337.7,4336.9,3.4408]
[1756871869638,3.3301,4338.0,4337.1,1.3328021]
[1756871869835,0.60653543,4337.9,4337.1,1.3328021]
[1756871870033,0.60653543,4337.8,4337.1,1.3328021]
[1756871870234,0.60653543,4337.7,4337.1,1.3328021]
[1756871870532,3.3301,4338.0,4337.1,1.3328021]
[1756871870833,0.60651588,4337.9,4337.1,1.3328021]
[1756871871139,0.60651588,4337.8,4337.1,1.3328021]
[1756871871335,0.60651588,4337.7,4337.1,1.3328021]
[1756871871633,3.3301,4338.0,4337.1,1.3328021]
[1756871871842,0.60651141,4337.9,4337.1,1.3328021]
[1756871872041,0.60651141,4337.8,4337.1,1.3328021]
[1756871872242,0.60651141,4337.7,4337.1,1.3328021]
[1756871872439,3.3301,4338.0,4337.1,1.3328021]
[1756871872642,0.60651404,4337.9,4336.9,3.2078]
[1756871872842,3.3301,4338.0,4336.9,3.2078]
[1756871872843,0.60651404,4337.8,4337.0,0.233]
[1756871873043,0.60651404,4337.7,4337.0,0.233]
[1756871873245,4.6629021,4338.0,4337.0,0.233]
[1756871873546,1.69829622,4337.9,4337.2,1.09175778]
[1756871873738,0.60653844,4337.8,4337.2,1.09175778]
[1756871873938,0.60653844,4337.7,4337.2,1.09175778]
[1756871874138,1.09175778,4337.9,4337.2,1.09175778]
[1756871874338,0.60657108,4337.8,4337.2,1.09175778]
[1756871874538,0.60657108,4337.7,4337.2,1.09175778]
[1756871874733,0.60657108,4337.6,4337.2,1.09175778]
[1756871874938,1.09175778,4337.9,4337.2,1.09175778]
[1756871875240,0.60657347,4337.8,4337.2,1.09175778]
[1756871875442,0.60657347,4337.7,4337.2,1.09175778]
[1756871875640,0.60657347,4337.6,4337.2,1.09175778]
[1756871875839,1.09175778,4337.9,4337.2,1.09175778]
[1756871876043,0.60661326,4337.8,4337.2,1.09175778]
[1756871876246,0.60661326,4337.7,4337.2,1.09175778]
[1756871876446,0.60661326,4337.6,4337.2,1.09175778]
[1756871876647,1.09175778,4337.9,4337.2,1.09175778]
[1756871876948,0.60666817,4337.8,4337.2,1.09175778]
[1756871877145,0.60666817,4337.7,4337.2,1.09175778]
[1756871877347,0.60666817,4337.6,4337.2,1.09175778]
[1756871877540,1.09175778,4337.5,4336.9,3.2078]
[1756871877749,0.60677504,4337.4,4336.9,1.09175778]
[1756871877954,3.2078,4337.5,4336.9,1.09175778]
[1756871878251,0.60677323,4337.4,4336.9,1.09175778]
[1756871878548,3.2078,4337.5,4336.9,1.09175778]
[1756871878847,0.60680841,4337.4,4336.9,1.09175778]
[1756871879046,3.2078,4337.5,4336.9,1.09175778]
[1756871879250,0.60680841,4337.4,4336.9,1.09175778]
[1756871879449,3.2078,4337.5,4336.9,1.09175778]
[1756871879649,0.60679064,4337.4,4336.9,1.09175778]
[1756871879838,3.2078,4337.5,4336.9,1.09175778]
[1756871880043,0.60679101,4337.4,4336.9,1.09175778]
[1756871880341,3.2078,4337.5,4336.9,1.09175778]
[1756871880538,0.60678713,4337.4,4336.9,1.09175778]
[1756871880743,3.2078,4337.5,4336.9,1.09175778]
[1756871880945,0.60678896,4337.4,4336.9,1.09175778]
[1756871881241,3.2078,4337.5,4336.9,1.09175778]
[1756871881442,0.60679148,4337.4,4336.9,1.09175778]
[1756871881649,3.2078,4337.5,4336.9,1.09175778]
[1756871881956,0.60678965,4337.4,4336.9,1.09175778]
[1756871882146,3.2078,4337.5,4336.9,1.09175778]
[1756871882346,0.60680383,4337.4,4336.9,1.09175778]
[1756871882550,3.2078,4337.5,4336.9,1.09175778]
[1756871882751,0.60680383,4337.4,4336.9,1.09175778]
[1756871882952,3.2078,4337.5,4336.9,1.09175778]
[1756871883152,0.60680456,4337.4,4336.9,1.09175778]
[1756871883358,1.09175778,4337.1,4336.4,3.2078]
[1756871883850,1.32475778,4337.1,4336.4,3.2078]
[1756871884553,1.09175778,4336.8,4336.4,3.2078]
[1756871896053,3.2078,4337.0,4336.4,3.2078]
[1756871896254,0.60729005,4336.9,4336.4,3.2078]
[1756871896555,0.60729005,4336.8,4336.4,3.2078]
[1756871896746,3.2078,4337.0,4336.4,3.2078]
[1756871896953,0.60724904,4336.9,4336.4,3.2078]
[1756871897151,0.60724904,4336.8,4336.4,3.2078]
[1756871897356,3.2078,4337.0,4336.4,3.2078]
[1756871897550,0.60721968,4336.9,4336.4,3.2078]
[1756871897751,0.60721968,4336.8,4336.4,3.2078]
[1756871897953,3.2078,4337.0,4336.4,3.2078]
[1756871898155,0.6072208,4336.9,4336.4,3.2078]
[1756871898452,0.6072208,4336.8,4336.4,3.2078]
[1756871898757,3.2078,4337.0,4336.4,3.2078]
[1756871898959,0.60719507,4336.9,4336.4,3.2078]
[1756871899254,0.60719507,4336.8,4336.4,3.2078]
[1756871899457,1.09175778,4336.8,4336.4,3.2078]
[1756871899858,1.09175778,4336.5,4335.9,3.4408]
[1756871900155,1.09175778,4336.5,4335.9,4.53255778]
[1756871900357,0.233,4336.7,4335.9,4.53255778]
[1756871902558,0.233,4336.7,4335.9,4.29955778]
[1756871902760,0.60728354,4336.6,4335.9,4.53255778]
[1756871902954,0.233,4336.7,4336.2,1.09175778]
[1756871903148,0.233,4336.7,4336.5,1.09175778]
[1756871907360,0.60758988,4336.6,4336.5,1.09175778]
[1756871908057,0.60758988,4336.6,4336.3,1.09175778]
[1756871908257,3.4408,4337.0,4336.3,1.09175778]
[1756871908458,0.60764734,4336.9,4336.3,1.09175778]
[1756871908763,3.4408,4337.0,4336.3,1.09175778]
[1756871908764,0.60764734,4336.8,4336.3,1.09175778]
[1756871908954,0.60764734,4336.7,4336.3,1.09175778]
[1756871909159,0.60764734,4336.6,4336.3,1.09175778]
[1756871909460,3.4408,4337.0,4336.3,1.09175778]
[1756871909666,0.607721,4336.9,4336.3,1.09175778]
[1756871909973,0.607721,4336.8,4336.6,1.09175778]
[1756871910262,0.607721,4336.7,4336.6,1.09175778]
[1756871910464,0.233,4337.0,4336.6,1.09175778]
[1756871910665,0.60770437,4336.9,4336.6,1.09175778]
[1756871910867,0.90770437,4336.8,4336.7,0.3533]
[1756871915473,1.10300437,4336.8,4336.7,0.3533]
[1756871915767,0.3,4337.4,4336.9,0.2692]
[1756871915972,0.1198,4337.5,4336.7,4.46359]
[1756871915973,0.90801978,4337.3,4337.2,1.44505778]
[1756871916170,0.1198,4337.5,4337.2,1.44505778]
[1756871916365,0.5238,4337.5,4337.0,3.2078]
[1756871916674,0.4953,4337.2,4337.1,0.5022]
[1756871916971,0.4953,4337.2,4337.1,1.67805778]
[1756871917479,0.4953,4337.2,4337.1,1.44505778]
[1756871917671,0.704,4337.2,4337.1,1.36095778]
[1756871918870,0.704,4337.2,4337.1,0.1346]
[1756871919072,0.5087,4336.9,4336.4,3.3424]
[1756871919273,0.4953,4336.6,4336.5,0.5022]
[1756871919775,0.4953,4336.6,4336.5,1.59395778]
[1756871921486,0.3,4336.6,4336.5,1.67795778]
[1756871923984,0.5004,4336.6,4336.5,1.36095778]
[1756871924185,0.5004,4336.6,4336.5,1.59395778]
[1756871924386,0.3,4336.6,4336.5,1.67795778]
[1756871924581,0.1198,4337.0,4336.5,1.59395778]
[1756871924778,0.3126,4336.9,4336.8,1.44455778]
[1756871924977,0.3126,4336.9,4336.8,1.67755778]
[1756871925486,0.513,4336.9,4336.8,1.59355778]
[1756871926280,0.513,4336.9,4336.8,1.36055778]
[1756871926481,0.7071,4336.9,4336.8,0.233]
[1756871926788,0.7071,4336.9,4336.8,0.3674]
[1756871928285,0.7071,4336.9,4336.8,0.1344]
[1756871930291,0.7071,4336.9,4336.8,1.36055778]
[1756871930990,0.3126,4336.9,4336.8,1.36055778]
[1756871931184,0.3126,4336.9,4336.8,1.44455778]
[1756871931689,0.513,4337.4,4337.3,0.2688]
[1756871931988,0.513,4337.4,4337.3,1.36055778]
[1756871932690,0.7071,4337.4,4337.3,0.2688]
[1756871934284,0.3126,4337.3,4336.6,3.2078]
[1756871934490,0.3126,4336.7,4336.6,3.5606]
[1756871934785,0.3126,4336.7,4336.6,3.2078]
[1756871934786,0.7071,4336.7,4336.6,3.2078]
[1756871934984,0.1278,4336.5,4336.0,3.2078]
[1756871935181,0.8349,4336.5,4336.4,0.1344]
[1756871935388,0.8349,4336.5,4336.4,0.2688]
[1756871936979,0.8349,4336.5,4336.4,0.1344]
[1756871937387,0.8349,4336.5,4336.4,0.3674]
[1756871937783,0.8349,4336.5,4336.0,44.0078]
[1756871937985,0.7071,4336.1,4336.0,3.4408]
[1756871938377,0.7071,4336.1,4336.0,3.5752]
[1756871938584,0.7071,4336.1,4336.0,3.2078]
[1756871938786,0.3126,4336.1,4336.0,3.5606]
[1756871938983,0.7071,4336.1,4336.0,5.04338965]
[1756871939289,0.7071,4336.1,4336.0,3.4408]
[1756871940790,0.7071,4336.1,4336.0,3.5752]
[1756871941384,0.7071,4336.1,4336.0,3.4408]
[1756871941883,0.7071,4336.1,4336.0,3.2078]
[1756871943081,0.3126,4336.1,4336.0,3.4766]
[1756871943290,0.513,4336.1,4336.0,3.5606]
[1756871943491,0.513,4336.1,4336.0,3.4766]
[1756871943692,0.3126,4336.4,4336.0,3.7096]
[1756871943890,0.1278,4336.5,4336.4,0.3528]
[1756871944391,0.4404,4336.5,4336.4,0.3528]
[1756871944892,0.3126,4336.9,4336.5,0.084]
[1756871945089,0.513,4337.4,4337.3,0.2688]
[1756871945295,0.7071,4337.4,4337.3,0.2688]
[1756871949502,0.1198,4337.5,4337.1,0.233]
[1756871949503,0.7071,4337.2,4337.1,0.233]
[1756871949796,0.7071,4337.2,4337.1,0.504]
[1756871951105,0.3945,4337.2,4337.1,0.504]
[1756871951697,0.6876,4337.2,4337.1,0.504]
[1756871954814,0.2931,4337.2,4337.1,0.5871]
[1756871955909,0.4925,4337.2,4337.1,0.504]
[1756871956409,0.696,4337.2,4337.1,0.504]
[1756871957715,0.696,4337.2,4337.1,0.3685]
[1756871958608,0.696,4337.2,4337.1,0.5014]
[1756871959706,0.696,4337.2,4337.1,0.3685]
[1756871960610,0.696,4337.2,4337.1,0.5014]
[1756871961017,0.2931,4337.2,4337.1,0.5014]
[1756871961211,0.3192,4338.0,4337.9,0.1329]
[1756871961518,0.8158,4338.0,4337.9,0.3659]
[1756871964012,0.8158,4338.0,4337.9,0.4988]
[1756871970422,0.6123,4338.0,4337.9,0.4988]
[1756871970627,0.6123,4338.0,4337.9,0.5819]
[1756871970814,0.8158,4338.0,4337.9,0.4988]
[1756871972022,0.8158,4338.0,4337.9,0.2658]
[1756871972223,0.8158,4338.0,4337.9,0.4988]
[1756871974620,0.2931,4337.9,4337.6,3.2078]
[1756871974827,0.2931,4337.7,4337.6,3.2078]
[1756871975016,0.696,4337.7,4337.6,3.4408]
[1756871975323,0.696,4337.7,4337.6,3.5737]
[1756871975510,0.696,4337.7,4337.6,4.90748965]
[1756871976423,0.696,4337.7,4337.6,3.4408]
[1756871977918,0.696,4337.7,4337.6,3.2078]
[1756871980921,0.696,4337.7,4337.5,0.233]
[1756871982324,0.8411,4337.0,4336.9,3.4768]
[1756871982525,0.8411,4337.0,4336.9,3.7098]
[1756871982829,0.8411,4337.0,4336.9,44.2768]
[1756871983130,0.8411,4337.0,4336.9,3.7098]
[1756871983920,0.629,4337.0,4336.9,5.04358965]
[1756871984924,0.629,4337.0,4336.9,5.12758965]
[1756871985126,0.4306,4337.0,4336.9,5.12758965]
[1756871988332,0.629,4337.0,4336.9,4.89458965]
[1756871988626,0.629,4337.0,4336.9,5.12758965]
[1756871990525,0.8411,4337.0,4336.9,5.04358965]
[1756871991026,0.8411,4337.0,4336.9,4.81058965]
[1756871991328,0.8411,4337.0,4336.9,3.4408]
[1756871991730,0.8411,4337.0,4336.9,3.2078]
[1756871991930,0.8411,4337.0,4336.9,3.4408]
[1756871993034,0.8411,4336.5,4336.4,3.2078]
[1756871993228,0.1185,4336.0,4335.9,3.2078]
[1756871993430,0.629,4336.0,4335.9,5.04358965]
[1756871993630,0.629,4336.0,4335.9,45.84358965]
[1756871994136,0.629,4336.0,4335.9,5.04358965]
[1756871994434,0.8411,4336.0,4335.9,5.04358965]
[1756871995537,0.8411,4336.0,4335.9,4.81058965]
[1756871995837,0.629,4336.0,4335.9,5.12758965]
[1756871996732,0.629,4336.0,4335.9,5.04358965]
[1756871997438,0.629,4336.0,4335.9,4.80206228]
[1756871998032,0.8411,4336.0,4335.9,4.80206228]
[1756872000039,0.529,4336.0,4335.9,4.66756228]
[1756872000340,0.8411,4336.0,4335.9,3.4408]
[1756872001039,0.8411,4336.0,4335.9,3.2078]
[1756872001344,5.93336228,4336.0,4335.9,3.2078]
[1756872002639,4.8411,4336.0,4335.9,3.2078]
[1756872003543,5.93336228,4336.0,4335.9,3.2078]
[1756872004138,4.8411,4336.0,4335.9,3.2078]
[1756872004734,4.8411,4336.0,4335.9,3.3423]
[1756872006139,0.8411,4336.0,4335.9,3.2078]
[1756872006541,0.8411,4336.0,4335.6,0.233]
[1756872006737,0.529,4336.0,4335.4,4.30006228]
[1756872006943,0.8411,4335.5,4335.4,4.43486228]
[1756872007334,0.8411,4335.5,4335.4,4.66786228]
[1756872007742,0.8411,4335.5,4335.4,4.80256228]
[1756872008541,0.8411,4335.5,4335.4,4.56956228]
[1756872008842,0.8411,4335.5,4335.4,4.80256228]
[1756872010243,1.93336228,4335.5,4335.4,3.2078]
[1756872010443,1.93336228,4335.5,4335.4,3.4408]
[1756872010741,0.8411,4335.5,4335.4,3.4408]
[1756872011132,0.8411,4335.5,4335.4,3.7103]
[1756872011441,0.3121,4335.5,4335.4,4.88676228]
[1756872011738,0.5077,4336.4,4336.3,0.2696]
[1756872011938,0.5077,4336.4,4336.3,1.36186228]
[1756872012130,0.7178,4336.4,4336.3,0.1348]
[1756872012337,0.7178,4336.4,4336.0,0.233]
[1756872012542,0.8341,4336.0,4335.9,0.5026]
[1756872012845,0.4128,4336.0,4335.9,0.5868]
[1756872013035,0.624,4336.0,4335.9,0.5026]
[1756872013238,0.624,4336.0,4335.9,0.2696]
[1756872013542,0.4213,4335.7,4335.6,0.3678]
[1756872013740,0.2965,4335.7,4335.6,1.67906228]
[1756872014038,0.1163,4336.0,4335.8,0.3538]
[1756872014242,0.2965,4336.3,4336.2,0.2696]
[1756872015336,0.2965,4336.3,4336.2,1.44606228]
[1756872015941,0.2965,4336.3,4336.2,1.67906228]
[1756872017148,0.1185,4336.5,4336.2,1.67906228]
[1756872017342,0.2965,4336.4,4336.2,1.67906228]
[1756872017541,0.1185,4336.5,4336.2,1.67906228]
[1756872017845,0.6262,4336.5,4336.4,0.2696]
[1756872018046,0.6262,4336.5,4336.4,0.5026]
[1756872019349,0.8363,4336.5,4336.4,0.5026]
[1756872019747,0.8363,4336.5,4336.4,0.3678]
[1756872020246,0.8363,4336.5,4336.4,0.5026]
[1756872021341,0.415,4336.5,4336.4,0.5868]
[1756872021648,0.6262,4336.5,4336.4,0.5026]
[1756872021851,0.2965,4336.5,4336.4,0.5868]
[1756872022146,3.2078,4337.7,4336.9,0.0842]
[1756872022451,0.624,4337.5,4337.4,1.36186228]
[1756872022652,0.624,4337.5,4337.4,1.59486228]
[1756872022851,0.4128,4337.5,4337.4,1.59486228]